bitfinex-derivatives/quotes_ETHF0:USTF0_20241005
["timestamp","ask_amount","ask_price","bid_price","bid_amount"]
[1728127193084,2.15761728,2418.5,2418.4,2.6453911]
[1728127193280,2.15761728,2418.5,2418.4,1.56022617]
[1728127193675,2.15761728,2418.5,2418.4,2.64542189]
[1728127194283,2.15761728,2418.5,2418.4,2.64542039]
[1728127194485,2.44703728,2418.5,2418.4,2.35599039]
[1728127199094,2.15761728,2418.5,2418.4,2.35599039]
[1728127199293,2.15761728,2418.5,2418.4,2.64540907]
[1728127199596,2.15761728,2418.5,2418.4,3.18781356]
[1728127199990,2.44703728,2418.5,2418.4,2.64536785]
[1728127200297,2.44703728,2418.5,2418.4,3.18781356]
[1728127200592,6.18541728,2418.6,2418.4,2.89838356]
[1728127200783,4.83009297,2418.6,2418.5,3.18780356]
[1728127200988,4.83009297,2418.6,2418.5,3.59200356]
[1728127200989,4.83013035,2418.6,2418.5,3.59200356]
[1728127201196,5.11953035,2418.6,2418.5,3.59200356]
[1728127201488,4.83013035,2418.6,2418.5,3.59200356]
[1728127201683,4.83013035,2418.6,2418.5,5.08200356]
[1728127201989,4.83013035,2418.6,2418.5,5.08202019]
[1728127202394,4.83013035,2418.6,2418.5,4.79260019]
[1728127202587,4.83013035,2418.6,2418.5,5.08202019]
[1728127202792,5.11953035,2418.6,2418.5,3.30260019]
[1728127202999,5.92883035,2418.6,2418.5,3.30260019]
[1728127203294,6.02843035,2418.6,2418.5,3.59202019]
[1728127203490,6.31783035,2418.6,2418.5,3.30260019]
[1728127203685,6.31783035,2418.6,2418.5,2.75962738]
[1728127204691,6.85311728,2418.6,2418.5,1.48885229]
[1728127204890,4.6955,2418.6,2418.5,1.48885229]
[1728127206089,1.4877,2418.6,2418.5,1.48885229]
[1728127207192,1.1983,2418.6,2418.5,1.77827229]
[1728127207397,2.15761728,2418.7,2418.6,0.2894]
[1728127208500,2.44701728,2418.7,2418.5,1.77826229]
[1728127209094,2.15761728,2418.7,2418.5,1.48885229]
[1728127209289,1.1068,2418.6,2418.5,1.08465229]
[1728127209489,0.8174,2418.6,2418.4,1.08465229]
[1728127209695,2.55651728,2418.5,2418.3,1.08465229]
[1728127209905,0.28943,2418.4,2418.3,1.08465229]
[1728127213100,0.28943,2418.4,2418.3,1.37409229]
[1728127213600,2.55651728,2418.5,2418.3,1.37409229]
[1728127213796,2.55651728,2418.5,2418.4,0.28943]
[1728127213994,2.55651728,2418.5,2418.3,1.49835229]
[1728127213995,2.55651728,2418.5,2418.3,2.29555229]
[1728127214202,1.62115073,2418.4,2418.3,2.58498229]
[1728127214699,1.62115073,2418.4,2418.3,5.88828792]
[1728127215092,2.02315073,2418.5,2418.4,0.28943]
[1728127215301,0.402,2418.5,2418.4,1.37397771]
[1728127215800,0.69142,2418.5,2418.4,1.08454771]
[1728127216304,0.69142,2418.5,2418.4,1.37397771]
[1728127216495,0.402,2418.5,2418.4,1.37397771]
[1728127220293,6.18281728,2418.6,2418.4,1.08454771]
[1728127220606,6.18281728,2418.6,2418.5,1.77942]
[1728127220807,6.18281728,2418.6,2418.5,0.28942]
[1728127225003,5.36541728,2418.6,2418.5,1.77942]
[1728127225309,5.36541728,2418.6,2418.5,8.8170616]
[1728127225310,1.62215309,2418.6,2418.5,8.8170616]
[1728127225608,1.62215309,2418.6,2418.5,7.1894365]
[1728127225609,1.08142026,2418.6,2418.5,7.1894365]
[1728127225813,1.08142026,2418.6,2418.5,7.18932843]
[1728127226707,1.08142026,2418.6,2418.5,8.81603317]
[1728127226910,1.08142026,2418.6,2418.5,8.8160342]
[1728127227907,1.08142026,2418.6,2418.5,7.18932843]
[1728127228206,1.08142026,2418.6,2418.5,8.81578019]
[1728127229010,1.08142026,2418.6,2418.5,4.68138019]
[1728127229514,1.08142026,2418.6,2418.5,3.19138019]
[1728127229707,2.26362026,2418.6,2418.5,4.68138019]
[1728127230411,2.26362026,2418.6,2418.5,3.05492843]
[1728127230614,2.80435309,2418.6,2418.5,2.86366992]
[1728127231508,1.62215309,2418.6,2418.5,8.27320043]
[1728127231909,1.08123541,2418.6,2418.5,8.81540227]
[1728127233217,1.08123541,2418.6,2418.5,8.27311478]
[1728127235304,1.08123541,2418.6,2418.5,8.2729871]
[1728127235510,1.62215309,2418.7,2418.6,0.2894]
[1728127236018,1.62215309,2418.7,2418.6,1.1065]
[1728127236722,2.03385309,2418.7,2418.6,1.1065]
[1728127237018,1.62215309,2418.7,2418.6,1.5181]
[1728127237819,1.62215309,2418.7,2418.6,3.0081]
[1728127238111,1.62215309,2418.7,2418.6,5.36726348]
[1728127238112,1.08135585,2418.7,2418.6,5.36726348]
[1728127238713,1.08135585,2418.7,2418.6,8.41749921]
[1728127238913,1.08135585,2418.7,2418.6,10.04395097]
[1728127239811,1.08135585,2418.8,2418.7,0.28939]
[1728127240015,1.08135585,2418.8,2418.7,2.35893975]
[1728127240217,1.08135585,2418.8,2418.7,2.35874897]
[1728127240415,1.08135585,2418.8,2418.7,1.08394054]
[1728127241015,1.08135585,2418.8,2418.7,2.35864504]
[1728127241319,1.08135585,2418.8,2418.7,2.64803504]
[1728127241917,1.08135585,2418.8,2418.7,2.35864504]
[1728127242117,1.08135585,2418.8,2418.7,2.64803504]
[1728127244121,1.08135585,2418.8,2418.7,1.37333054]
[1728127244922,1.08135585,2418.8,2418.7,6.7820586]
[1728127245124,4.82995309,2418.9,2418.8,0.28938]
[1728127245125,3.2078,2418.9,2418.8,0.28938]
[1728127245323,1.56135585,2419.2,2418.8,12.27025063]
[1728127245624,1.08135585,2419.2,2419.1,1.77934]
[1728127245818,1.08135585,2419.2,2419.1,2.86257061]
[1728127246015,1.08135585,2419.2,2419.1,2.96593061]
[1728127246221,2.55517585,2419.3,2419.1,1.8827]
[1728127246633,2.55517585,2419.3,2419.2,0.4163]
[1728127247824,2.26585585,2419.3,2419.2,0.4163]
[1728127249125,1.1845,2419.3,2419.2,0.4163]
[1728127250021,0.28934,2419.1,2419.0,1.49]
[1728127250223,2.26585585,2419.3,2418.8,1.08323061]
[1728127250224,4.28915585,2419.2,2418.8,1.08323061]
[1728127250421,4.28915585,2419.2,2418.8,1.49]
[1728127250422,0.28938,2418.9,2418.8,1.49]
[1728127250723,1.37073585,2418.9,2418.8,1.49]
[1728127250925,1.77293585,2418.9,2418.8,1.49]
[1728127251323,0.69158,2418.9,2418.8,1.49]
[1728127251526,0.4022,2418.9,2418.6,0.4252]
[1728127251726,0.69157,2418.9,2418.7,1.49]
[1728127252130,1.77292585,2418.9,2418.7,1.49]
[1728127255123,1.48355585,2418.9,2418.7,1.49]
[1728127257534,1.48355585,2418.9,2418.7,1.77939]
[1728127259425,1.48355585,2418.9,2418.8,0.28938]
[1728127259628,0.4022,2418.9,2418.8,0.69328]
[1728127260432,1.49185585,2419.0,2418.8,0.4039]
[1728127260633,1.49185585,2419.0,2418.9,1.77937]
[1728127262238,1.49385585,2419.2,2419.1,0.28934]
[1728127262441,1.49385585,2419.2,2419.1,1.77934]
[1728127262442,0.4125,2419.2,2419.1,1.77934]
[1728127264039,4.28915585,2419.3,2419.2,0.28933]
[1728127264441,4.28915585,2419.3,2419.2,0.67753]
[1728127265933,4.28915585,2419.3,2419.2,0.3882]
[1728127266235,4.28915585,2419.3,2419.1,1.77934]
[1728127266441,4.57847585,2419.3,2419.1,1.77934]
[1728127266842,4.57847585,2419.3,2419.2,0.28933]
[1728127266843,4.28915585,2419.3,2419.2,0.28933]
[1728127268237,1.08135585,2419.3,2419.2,0.28933]
[1728127269143,3.9968,2419.4,2419.3,0.28932]
[1728127269144,4.28915585,2419.4,2419.3,0.28932]
[1728127269343,1.08135585,2419.5,2419.3,1.49]
[1728127269540,1.08135585,2419.5,2419.3,1.77931]
[1728127269743,1.08135585,2419.5,2419.4,0.386]
[1728127270243,1.08135585,2419.5,2419.4,0.28931]
[1728127271447,1.37065585,2419.5,2419.3,1.77932]
[1728127271642,0.28932,2419.3,2419.1,1.75857061]
[1728127271843,0.28932,2419.3,2419.2,1.49]
[1728127272245,0.8002,2419.3,2419.2,1.49]
[1728127273252,0.8002,2419.3,2419.2,1.77933]
[1728127273838,1.2209,2419.3,2419.2,1.77933]
[1728127275443,1.2209,2419.3,2419.2,1.49]
[1728127275638,1.2209,2419.3,2419.2,1.77933]
[1728127282551,0.8002,2419.3,2419.2,1.77933]
[1728127283351,1.08135585,2419.4,2419.3,0.28932]
[1728127283554,1.08135585,2419.5,2419.4,0.28931]
[1728127283953,1.08135585,2419.5,2419.4,0.68501]
[1728127287748,1.08135585,2419.5,2419.2,1.08323061]
[1728127287948,0.3932,2419.4,2419.3,0.28931]
[1728127288149,1.07971,2419.4,2419.3,0.28931]
[1728127288350,2.16106585,2419.4,2419.2,0.71163]
[1728127288763,1.87175585,2419.4,2419.2,0.4223]
[1728127288956,1.87175585,2419.4,2419.3,0.28932]
[1728127290256,1.87175585,2419.4,2419.3,1.77932]
[1728127291166,1.08135585,2419.5,2419.3,1.49]
[1728127291370,1.08135585,2419.5,2419.4,0.70901]
[1728127292252,1.08135585,2419.5,2419.4,0.28931]
[1728127296461,1.37065585,2419.5,2419.4,0.28931]
[1728127296657,1.37065585,2419.5,2419.3,0.28931]
[1728127296856,1.2467,2419.4,2419.3,0.28931]
[1728127299267,1.08135585,2419.5,2419.2,3.41523061]
[1728127299467,1.08135585,2419.5,2419.4,0.28931]
[1728127301177,1.08135585,2419.5,2419.3,2.18191]
[1728127301467,1.08135585,2419.5,2419.3,2.97583061]
[1728127301669,1.08135585,2419.5,2419.2,1.92523061]
[1728127301971,1.08135585,2419.5,2419.2,1.79486061]
[1728127301972,2.16426585,2419.4,2419.2,1.79486061]
[1728127302159,1.08135585,2419.3,2419.2,0.71163]
[1728127302361,1.46915585,2419.3,2419.2,1.79486061]
[1728127305275,2.00995309,2419.3,2419.2,3.07228035]
[1728127305777,2.00995309,2419.3,2419.2,3.07229992]
[1728127307375,2.00995309,2419.3,2419.2,3.61391523]
[1728127310465,2.00995309,2419.3,2419.2,3.6143805]
[1728127310668,3.5956,2419.3,2419.2,2.78462749]
[1728127310867,3.88492,2419.3,2419.2,4.40947393]
[1728127311073,0.67712,2419.3,2419.2,1.50672343]
[1728127311572,0.67712,2419.3,2419.2,1.08442343]
[1728127311873,0.67712,2419.3,2419.0,2.16372257]
[1728127311874,6.5819516,2419.3,2419.0,1.37377343]
[1728127312078,6.5819516,2419.3,2419.1,1.37376343]
[1728127312079,2.16320066,2419.2,2419.1,1.37376343]
[1728127312285,2.16320066,2419.2,2419.1,0.28934]
[1728127312979,2.16320066,2419.2,2419.0,1.37377343]
[1728127313172,1.62207107,2419.1,2419.0,1.37377343]
[1728127313372,1.62207107,2419.1,2419.0,2.65173415]
[1728127315078,1.62207107,2419.1,2419.0,1.56731072]
[1728127315279,1.62207107,2419.1,2419.0,2.65151652]
[1728127315580,1.62207107,2419.1,2419.0,1.3735558]
[1728127319684,1.62207107,2419.1,2418.9,3.2639658]
[1728127319888,1.08086434,2419.0,2418.9,3.2639658]
[1728127320091,1.08086434,2419.0,2418.9,4.54127753]
[1728127320285,1.62207107,2419.0,2418.9,3.2639658]
[1728127320487,1.08076122,2419.0,2418.9,3.2639658]
[1728127320787,1.08076122,2419.0,2418.9,3.45703952]
[1728127321085,1.08076122,2419.0,2418.9,5.08188544]
[1728127322478,1.08076122,2419.1,2419.0,0.28936]
[1728127322679,1.08076122,2419.1,2419.0,2.19525384]
[1728127324793,1.08076122,2419.1,2419.0,7.60588096]
[1728127325088,1.62207107,2419.2,2419.1,0.28934]
[1728127325089,1.08076122,2419.2,2419.1,0.28934]
[1728127325285,1.08076122,2419.2,2419.1,2.86291524]
[1728127325789,1.08076122,2419.2,2419.1,4.13989347]
[1728127325991,1.08076122,2419.2,2419.1,2.86291524]
[1728127326793,1.08076122,2419.2,2419.1,1.37291524]
[1728127328594,1.62207107,2419.3,2419.1,1.37291524]
[1728127328998,1.62207107,2419.3,2419.2,0.4037]
[1728127330093,1.62207107,2419.3,2419.2,0.69303]
[1728127331192,1.08052564,2419.4,2419.2,4.79540375]
[1728127331394,1.08052564,2419.4,2419.3,4.96651357]
[1728127331600,1.08052564,2419.5,2419.4,0.28931]
[1728127331790,1.08052564,2419.5,2419.4,1.37270146]
[1728127335092,1.08052564,2419.5,2419.4,1.08339146]
[1728127335292,1.36982564,2419.5,2419.3,3.68961146]
[1728127335603,1.08052564,2419.4,2419.3,3.68961146]
[1728127336193,1.47662564,2419.4,2419.3,3.68961146]
[1728127342106,0.3961,2419.4,2419.2,1.48709146]
[1728127342306,2.01817107,2419.4,2419.3,0.28932]
[1728127343005,1.47647139,2419.4,2419.3,1.77932]
[1728127343304,1.08037139,2419.4,2419.3,1.77932]
[1728127343510,1.08037259,2419.4,2419.3,1.77932]
[1728127344205,1.08037259,2419.4,2419.3,2.86271146]
[1728127344509,1.08037259,2419.4,2419.3,1.77932]
[1728127344810,1.08037259,2419.4,2419.3,2.86271146]
[1728127345213,1.08037259,2419.4,2419.3,4.14382559]
[1728127345411,1.08037259,2419.4,2419.3,2.86271146]
[1728127345611,1.08037259,2419.4,2419.3,4.1438158]
[1728127346110,1.08037259,2419.4,2419.3,2.86271146]
[1728127351414,1.08037259,2419.5,2419.4,0.28931]
[1728127351712,1.08037259,2419.5,2419.4,1.09891]
[1728127352303,1.62207107,2419.5,2419.4,1.09891]
[1728127356608,1.08012328,2419.5,2419.4,0.8096]
[1728127356914,1.08012328,2419.5,2419.4,1.09891]
[1728127360106,1.08012016,2419.5,2419.4,1.09891]
[1728127360512,1.62207107,2419.6,2419.4,1.09891]
[1728127361513,1.62207107,2419.5,2419.4,1.09891]
[1728127361715,1.08017792,2419.5,2419.4,1.09891]
[1728127362416,1.62207107,2419.5,2419.4,1.09891]
[1728127362906,1.62207107,2419.5,2419.4,0.8096]
[1728127363109,1.62207107,2419.5,2419.3,1.37271146]
[1728127363309,1.08025571,2419.4,2419.3,1.37271146]
[1728127363517,1.50155571,2419.4,2419.3,1.37271146]
[1728127364416,1.79086571,2419.4,2419.3,2.36480397]
[1728127364618,1.52211,2419.4,2419.3,1.08339146]
[1728127364809,2.60248426,2419.4,2419.3,1.08339146]
[1728127365010,1.52211,2419.4,2419.3,1.08339146]
[1728127365412,3.14418107,2419.4,2419.3,1.08339146]
[1728127370521,3.14418107,2419.4,2419.3,2.36559935]
[1728127370918,3.14418107,2419.4,2419.3,1.08339146]
[1728127371118,1.52211,2419.4,2419.3,1.08339146]
[1728127372528,1.52211,2419.4,2419.3,2.3657058]
[1728127375423,1.52211,2419.4,2419.3,1.28231434]
[1728127376527,3.68531066,2419.4,2419.3,2.90716026]
[1728127378524,3.39600066,2419.4,2419.3,3.19648026]
[1728127379319,3.39600066,2419.4,2419.3,2.90716026]
[1728127380618,3.68531066,2419.4,2419.3,2.90716026]
[1728127380819,3.68531066,2419.4,2419.3,2.90777521]
[1728127381021,3.68531066,2419.4,2419.3,2.36782901]
[1728127381219,4.2191316,2419.4,2419.2,1.08489972]
[1728127381423,2.45243737,2419.3,2419.2,1.08482996]
[1728127383128,5.66023737,2419.3,2419.2,1.08482996]
[1728127383325,0.28933,2419.2,2419.1,1.08482996]
[1728127383530,2.45154316,2419.2,2419.1,1.08482996]
[1728127383835,2.45154316,2419.2,2419.0,1.47222996]
[1728127383836,8.99283476,2419.2,2419.0,1.47222996]
[1728127384038,8.99283476,2419.2,2419.0,0.3874]
[1728127384039,3.26464588,2419.1,2419.0,0.3874]
[1728127384232,1.10264,2419.1,2419.0,0.3874]
[1728127384431,3.26380493,2419.1,2419.0,0.3874]
[1728127384638,3.67860493,2419.1,2419.0,0.3874]
[1728127385141,3.38926493,2419.1,2419.0,0.67676]
[1728127385536,3.38926493,2419.1,2419.0,0.3874]
[1728127385836,3.67860493,2419.1,2419.0,0.3874]
[1728127386934,0.28936,2419.0,2418.8,1.49618]
[1728127387131,1.07999919,2418.9,2418.8,1.49618]
[1728127387329,1.36936919,2418.9,2418.8,1.2068]
[1728127387537,1.07999919,2418.9,2418.8,1.2068]
[1728127387725,1.07999919,2418.9,2418.8,1.49618]
[1728127390241,1.07999919,2418.9,2418.8,1.2068]
[1728127391036,1.07999919,2418.9,2418.8,1.49618]
[1728127392328,1.36935919,2419.0,2418.8,1.49618]
[1728127392533,1.07999919,2419.0,2418.8,1.49618]
[1728127392841,1.36935919,2419.0,2418.8,1.49618]
[1728127393047,1.07999919,2419.0,2418.8,1.49618]
[1728127393534,1.36935919,2419.0,2418.8,1.2068]
[1728127394137,1.36935919,2419.0,2418.8,1.49618]
[1728127394742,1.07999919,2419.0,2418.8,1.2068]
[1728127394934,1.07999919,2419.0,2418.9,0.28937]
[1728127395338,1.36935919,2419.0,2418.8,1.49618]
[1728127395736,1.07999919,2419.0,2418.8,0.8068]
[1728127395930,0.28937,2418.9,2418.8,0.3868]
[1728127396238,0.28937,2418.9,2418.6,1.48382996]
[1728127396239,1.90937879,2418.9,2418.6,2.578]
[1728127396431,1.75525363,2418.8,2418.7,0.3874]
[1728127396635,1.46587363,2418.8,2418.7,0.3874]
[1728127396837,1.46587363,2418.8,2418.7,0.67679]
[1728127398338,1.75525363,2418.8,2418.7,0.3874]
[1728127398744,1.46587363,2418.8,2418.7,0.3874]
[1728127398940,1.46587363,2418.8,2418.7,0.67679]
[1728127400437,1.46587363,2418.8,2418.7,0.3874]
[1728127401446,0.3876,2418.8,2418.7,0.67679]
[1728127403442,0.3876,2418.8,2418.7,0.3874]
[1728127405739,0.67698,2418.8,2418.7,0.3874]
[1728127406237,1.49038,2418.8,2418.7,0.3874]
[1728127407149,1.49038,2418.8,2418.6,2.179]
[1728127407937,1.49038,2418.8,2418.7,0.4017]
[1728127408143,1.201,2418.8,2418.7,0.69109]
[1728127408552,4.57545363,2418.9,2418.7,0.69109]
[1728127408762,4.57545363,2418.9,2418.7,1.11269]
[1728127409244,3.49718,2418.9,2418.7,1.11269]
[1728127409444,4.57545363,2418.9,2418.7,1.11269]
[1728127409650,4.28607363,2418.9,2418.7,0.8233]
[1728127409948,4.28607363,2418.9,2418.8,0.28938]
[1728127410246,3.2078,2418.9,2418.8,0.28938]
[1728127410451,1.07827363,2419.0,2418.8,0.28938]
[1728127410647,1.36763363,2419.0,2418.9,0.4072]
[1728127410854,0.28936,2419.0,2418.9,0.4072]
[1728127411447,1.36763363,2419.0,2418.9,0.4072]
[1728127411847,0.28936,2419.0,2418.9,0.4072]
[1728127412455,1.36763363,2419.0,2418.9,0.4072]
[1728127419060,1.07827363,2419.0,2418.7,2.60268]
[1728127419251,0.28937,2418.9,2418.7,2.99688]
[1728127420361,0.28938,2418.8,2418.7,0.4017]
[1728127420656,2.60615363,2418.8,2418.7,0.4017]
[1728127423451,1.52788,2418.8,2418.7,0.4017]
[1728127424455,3.14787879,2418.8,2418.7,0.4017]
[1728127427559,1.52788,2418.8,2418.7,0.4017]
[1728127429357,3.68904493,2418.8,2418.7,0.4017]
[1728127431057,3.28164493,2418.8,2418.7,0.4017]
[1728127433759,3.70784493,2418.8,2418.7,0.4017]
[1728127433962,1.54668,2418.8,2418.7,0.4017]
[1728127434862,3.70684342,2418.8,2418.7,0.4017]
[1728127437063,3.28064342,2418.8,2418.7,0.4017]
[1728127437261,2.44954342,2418.8,2418.7,1.48617927]
[1728127443058,2.44954342,2418.8,2418.7,1.77556927]
[1728127443059,2.16016342,2418.8,2418.7,1.77556927]
[1728127443261,5.65733342,2418.9,2418.7,1.77556927]
[1728127443464,5.36796342,2418.9,2418.8,1.37385927]
[1728127443671,5.36796342,2418.9,2418.8,7.3330605]
[1728127443672,4.82798289,2418.9,2418.8,7.3330605]
[1728127444058,3.2078,2418.9,2418.8,7.3330605]
[1728127444464,4.28780601,2418.9,2418.8,7.3330605]
[1728127444859,4.82798289,2418.9,2418.8,7.3330605]
[1728127445261,4.28782771,2418.9,2418.8,7.3330605]
[1728127446356,4.28782771,2418.9,2418.8,8.8230605]
[1728127447865,4.28782771,2418.9,2418.8,4.3992805]
[1728127448168,4.28782771,2418.9,2418.8,4.6886605]
[1728127448370,4.28782771,2418.9,2418.8,8.8230605]
[1728127448662,3.2078,2418.9,2418.8,8.5336805]
[1728127448869,3.2078,2418.9,2418.8,5.4169616]
[1728127448870,4.82798289,2418.9,2418.8,5.4169616]
[1728127449069,4.82798289,2418.9,2418.8,6.79023194]
[1728127449271,1.62018289,2418.9,2418.8,5.2186827]
[1728127449464,1.62018289,2418.9,2418.8,5.5080627]
[1728127450061,1.62018289,2418.9,2418.8,1.3736627]
[1728127454767,1.62018289,2418.9,2418.8,2.65587859]
[1728127455172,1.62018289,2418.9,2418.8,1.3736627]
[1728127455673,1.62018289,2418.9,2418.8,2.65588017]
[1728127457368,1.62018289,2418.9,2418.8,2.36650017]
[1728127457567,0.28937,2418.9,2418.7,1.4859827]
[1728127457773,1.9089495,2418.8,2418.7,1.0842827]
[1728127457982,1.9089495,2418.8,2418.7,2.36650528]
[1728127458178,7.5333495,2418.8,2418.7,1.0842827]
[1728127458480,0.28942,2418.5,2418.3,1.0842827]
[1728127458671,2.81528447,2418.4,2418.2,1.0842827]
[1728127458872,1.07925606,2418.3,2418.2,1.3737227]
[1728127459177,1.07925606,2418.3,2418.2,2.655845]
[1728127459378,1.07925606,2418.3,2418.2,4.145845]
[1728127459581,1.07925606,2418.3,2418.2,4.14551071]
[1728127459773,2.27565606,2418.4,2418.3,0.28944]
[1728127460071,2.27565606,2418.4,2418.3,2.86340259]
[1728127461283,1.87835606,2418.4,2418.3,2.86340259]
[1728127461481,1.87835606,2418.4,2418.3,1.77944]
[1728127461785,1.87835606,2418.4,2418.3,2.86340259]
[1728127463088,0.7991,2418.4,2418.3,2.86340259]
[1728127463882,1.87835606,2418.4,2418.3,1.49]
[1728127464078,1.87835606,2418.4,2418.3,1.77944]
[1728127464280,1.07925606,2418.4,2418.3,1.77944]
[1728127465876,1.86635606,2418.5,2418.3,1.49]
[1728127466082,1.86635606,2418.5,2418.4,0.28943]
[1728127466283,1.86635606,2418.5,2418.4,0.70223]
[1728127470285,1.86635606,2418.5,2418.4,1.08803]
[1728127470884,1.07925606,2418.5,2418.4,1.08803]
[1728127471084,1.07925606,2418.6,2418.4,4.9338]
[1728127471281,1.55925606,2418.9,2418.5,4.39727804]
[1728127471482,1.36862606,2418.9,2418.7,1.77939]
[1728127471977,1.36862606,2418.9,2418.8,0.3864]
[1728127472685,1.07925606,2418.9,2418.8,0.3864]
[1728127472888,1.07925606,2418.9,2418.8,0.67578]
[1728127473086,2.53562606,2419.0,2418.8,0.67578]
[1728127473592,2.53562606,2419.0,2418.8,1.08548]
[1728127474686,2.53562606,2419.0,2418.8,0.7961]
[1728127474888,2.53562606,2419.0,2418.8,1.08548]
[1728127475283,2.24625606,2419.0,2418.9,1.77937]
[1728127475483,0.7749,2419.0,2418.9,1.77937]
[1728127478709,1.36860606,2419.1,2418.9,1.77937]
[1728127479306,1.07925606,2419.1,2418.9,1.77937]
[1728127479805,2.17909606,2419.2,2419.0,1.77936]
[1728127480006,2.17909606,2419.2,2419.1,0.3908]
[1728127482902,1.88975606,2419.2,2419.1,0.68014]
[1728127483308,0.4261,2419.3,2419.2,0.28933]
[1728127483509,0.4261,2419.3,2419.2,1.77933]
[1728127483710,0.4261,2419.3,2419.2,1.49]
[1728127486511,0.4261,2419.3,2419.2,2.57913]
[1728127489412,0.67541,2419.4,2419.2,2.57913]
[1728127489718,0.3861,2419.4,2419.2,2.57913]
[1728127490313,0.67541,2419.4,2419.2,2.57913]
[1728127490511,0.3861,2419.4,2419.3,0.28932]
[1728127490912,0.3861,2419.4,2419.2,2.2898]
[1728127491113,0.67541,2419.4,2419.2,2.57913]
[1728127491920,0.67541,2419.4,2419.2,3.46156064]
[1728127493113,0.3861,2419.4,2419.3,0.28932]
[1728127498117,0.67541,2419.4,2419.2,2.57913]
[1728127498622,0.3861,2419.4,2419.2,2.57913]
[1728127500416,0.3861,2419.4,2419.3,0.28932]
[1728127501618,0.3861,2419.4,2419.2,2.2898]
[1728127501924,0.3861,2419.4,2419.2,2.57912]
[1728127502715,0.3861,2419.4,2419.3,0.28932]
[1728127503313,0.3861,2419.4,2419.2,2.57912]
[1728127505623,0.67541,2419.4,2419.2,2.57912]
[1728127505825,0.3861,2419.4,2419.2,2.57912]
[1728127511434,0.67541,2419.4,2419.2,2.57912]
[1728127511726,0.67541,2419.4,2419.2,2.2898]
[1728127511727,0.3861,2419.4,2419.2,2.2898]
[1728127511933,0.3861,2419.4,2419.2,2.57912]
[1728127513434,0.67541,2419.4,2419.2,2.57912]
[1728127514731,0.67541,2419.4,2419.2,2.2898]
[1728127514929,0.67541,2419.4,2419.2,2.57912]
[1728127515531,1.75466606,2419.4,2419.2,2.57912]
[1728127516630,1.75466606,2419.4,2419.2,3.66197845]
[1728127519636,1.07925606,2419.3,2419.2,3.66197845]
[1728127519927,1.07925606,2419.3,2419.2,4.94320983]
[1728127520134,1.75466606,2419.4,2419.2,4.94320983]
[1728127520333,1.07925606,2419.3,2419.2,3.66197845]
[1728127520635,1.07925606,2419.3,2419.2,5.4870891]
[1728127524630,1.61888447,2419.3,2419.2,5.4870891]
[1728127528531,2.83392262,2419.4,2419.2,5.48862987]
[1728127528738,2.83392262,2419.4,2419.3,1.28279097]
[1728127529438,2.83392262,2419.4,2419.3,2.36787089]
[1728127531143,0.67541,2419.4,2419.3,2.36787089]
[1728127533142,0.67541,2419.4,2419.3,2.36822628]
[1728127533344,2.83819778,2419.4,2419.3,2.36822628]
[1728127533542,0.67541,2419.4,2419.3,2.36822628]
[1728127534345,0.67541,2419.4,2419.3,1.08507992]
[1728127535138,2.83815832,2419.4,2419.3,2.36816345]
[1728127536047,2.83815832,2419.4,2419.3,2.36806213]
[1728127540736,2.83815832,2419.4,2419.3,1.0849786]
[1728127540941,0.67541,2419.4,2419.3,1.0849786]
[1728127541344,2.83806136,2419.4,2419.3,2.36799492]
[1728127544738,2.83806136,2419.4,2419.3,1.0849786]
[1728127545848,2.83808253,2419.4,2419.3,1.0849786]
[1728127547454,2.54877253,2419.4,2419.3,1.0849786]
[1728127547666,2.54877253,2419.4,2419.3,2.37057743]
[1728127547868,2.54877253,2419.4,2419.3,2.37057699]
[1728127548757,2.54877253,2419.4,2419.3,2.91231729]
[1728127550258,2.54877253,2419.4,2419.3,1.28559839]
[1728127550460,2.54877253,2419.4,2419.3,2.91231729]
[1728127551866,2.54877253,2419.4,2419.3,1.28559839]
[1728127552067,2.54877253,2419.4,2419.3,2.37059612]
[1728127552256,2.54877253,2419.4,2419.3,2.91234972]
[1728127553764,2.54877253,2419.4,2419.3,1.28563082]
[1728127553966,2.54877253,2419.4,2419.3,2.91234972]
[1728127554165,2.54877253,2419.4,2419.3,1.28563082]
[1728127554363,2.54877253,2419.4,2419.3,2.91234972]
[1728127554563,2.54877253,2419.4,2419.3,1.28563082]
[1728127555269,2.54877253,2419.4,2419.3,2.91234972]
[1728127556163,2.54877253,2419.4,2419.3,2.91237386]
[1728127557268,2.54877253,2419.4,2419.3,2.91237531]
[1728127557970,2.54877253,2419.4,2419.3,1.28565641]
[1728127558472,0.3861,2419.4,2419.3,1.08505292]
[1728127559568,0.3861,2419.4,2419.3,1.08220656]
[1728127559871,0.3861,2419.4,2419.3,2.36788414]
[1728127560963,0.3861,2419.4,2419.3,2.36787792]
[1728127561674,0.3861,2419.4,2419.3,2.65719792]
[1728127564274,0.3861,2419.4,2419.3,2.36787792]
[1728127565470,0.3861,2419.4,2419.3,2.36794786]
[1728127570273,0.3861,2419.4,2419.3,2.3680562]
[1728127571680,0.3861,2419.4,2419.3,1.28584964]
[1728127572680,0.3861,2419.4,2419.2,4.2058389]
[1728127572881,0.3861,2419.4,2419.3,1.28976189]
[1728127575290,0.3861,2419.4,2419.3,1.2897696]
[1728127576882,0.3861,2419.4,2419.3,2.9164885]
[1728127577285,0.3861,2419.4,2419.3,1.2897696]
[1728127580289,0.3861,2419.4,2419.3,1.28976801]
[1728127586497,0.67541,2419.4,2419.3,1.28976801]
[1728127587293,0.3861,2419.4,2419.3,1.28976801]
[1728127587600,0.3861,2419.4,2419.3,1.57908801]
[1728127588396,0.3861,2419.4,2419.3,3.20580691]
[1728127588598,0.3861,2419.4,2419.3,1.57908801]
[1728127589897,0.3861,2419.4,2419.3,1.57907144]
[1728127592800,0.3861,2419.4,2419.3,1.57907619]
[1728127594688,0.3861,2419.4,2419.3,1.57905373]
[1728127597996,0.3861,2419.4,2419.3,1.57909055]
[1728127598201,3.08424078,2419.4,2419.3,1.57909055]
[1728127598596,3.08424078,2419.4,2419.3,1.28977055]
[1728127598896,3.08424078,2419.4,2419.3,1.57909055]
[1728127599204,0.3861,2419.4,2419.3,1.57909055]
[1728127599502,0.3861,2419.4,2419.3,1.57910044]
[1728127599699,3.08424078,2419.4,2419.3,1.57910044]
[1728127601104,0.3861,2419.4,2419.3,1.57910044]
[1728127601305,3.08424078,2419.4,2419.3,1.57910044]
[1728127602303,3.08424078,2419.4,2419.3,1.28978044]
[1728127602507,3.08424078,2419.4,2419.3,1.57910044]